[Event "Late-Titled-Tuesday-Blitz-April-16-2024"]
[Site "Chess.com"]
[Date "2024.04.16"]
[Round "4"]
[White "BogdanDeac"]
[Black "Zavgorodniy_Sergiy"]
[Result "1-0"]
[WhiteElo "3000"]
[BlackElo "2618"]
[TimeControl "180+1"]
[EndTime "14:37:28 PDT"]
[Termination "BogdanDeac won by resignation"]

1. Nf3 {[%clk 0:03:00.9]} 1... d5 {[%clk 0:02:59.8]} 2. d4 {[%clk 0:03:00.9]}
2... Nf6 {[%clk 0:02:59.7]} 3. c4 {[%clk 0:03:01.6]} 3... dxc4 {[%clk
0:03:00.6]} 4. e3 {[%clk 0:03:00.8]} 4... e6 {[%clk 0:03:00.8]} 5. Bxc4 {[%clk
0:03:00.5]} 5... a6 {[%clk 0:03:01.3]} 6. O-O {[%clk 0:03:00.6]} 6... b5 {[%clk
0:03:01.7]} 7. Be2 {[%clk 0:02:58.3]} 7... Bb7 {[%clk 0:03:02]} 8. a4 {[%clk
0:02:58.1]} 8... b4 {[%clk 0:03:02.5]} 9. Nbd2 {[%clk 0:02:58.3]} 9... Nbd7
{[%clk 0:03:02.8]} 10. Nc4 {[%clk 0:02:54.5]} 10... c5 {[%clk 0:03:02.8]} 11. b3
{[%clk 0:02:54.3]} 11... Be7 {[%clk 0:03:03]} 12. Bb2 {[%clk 0:02:54.1]} 12...
O-O {[%clk 0:03:02.9]} 13. Rc1 {[%clk 0:02:54]} 13... cxd4 {[%clk 0:03:02.5]}
14. Nxd4 {[%clk 0:02:52.8]} 14... Nc5 {[%clk 0:03:02.7]} 15. Bf3 {[%clk
0:02:42.8]} 15... Nd5 {[%clk 0:03:02.6]} 16. Qc2 {[%clk 0:02:16.6]} 16... Rc8
{[%clk 0:02:58.7]} 17. Rfd1 {[%clk 0:02:16.2]} 17... Qc7 {[%clk 0:02:55]} 18.
Nf5 {[%clk 0:02:15]} 18... Nc3 {[%clk 0:02:04.5]} 19. Bxc3 {[%clk 0:01:57.8]}
19... Bxf3 {[%clk 0:01:49.5]} 20. gxf3 {[%clk 0:01:57]} 20... bxc3 {[%clk
0:01:46.2]} 21. Nxe7+ {[%clk 0:01:43.6]} 21... Qxe7 {[%clk 0:01:47.1]} 22. Qxc3
{[%clk 0:01:44]} 22... Rb8 {[%clk 0:01:43.5]} 23. Na5 {[%clk 0:01:26]} 23...
Qg5+ {[%clk 0:01:36.3]} 24. Kf1 {[%clk 0:01:24.9]} 24... Nb7 {[%clk 0:01:10.5]}
25. Nc6 {[%clk 0:01:22.6]} 25... Ra8 {[%clk 0:01:01.3]} 26. Qe5 {[%clk
0:01:22.3]} 26... Qxe5 {[%clk 0:00:41.3]} 27. Nxe5 {[%clk 0:01:21.7]} 27... f6
{[%clk 0:00:31.9]} 28. Rc7 {[%clk 0:01:16.9]} 28... Rfd8 {[%clk 0:00:22]} 29.
Rxd8+ {[%clk 0:01:09.8]} 29... Nxd8 {[%clk 0:00:22.9]} 30. Nc4 {[%clk
0:01:08.8]} 30... Rb8 {[%clk 0:00:21.7]} 31. Ke2 {[%clk 0:00:55.4]} 31... Nf7
{[%clk 0:00:19.2]} 32. Rc6 {[%clk 0:00:51]} 32... h5 {[%clk 0:00:13.1]} 33. Nd2
{[%clk 0:00:50.2]} 33... a5 {[%clk 0:00:10]} 34. Rxe6 {[%clk 0:00:49.8]} 34...
Rc8 {[%clk 0:00:05.4]} 35. Nc4 {[%clk 0:00:49.4]} 35... Rc5 {[%clk 0:00:03.4]}
36. f4 {[%clk 0:00:47.5]} 36... Kh7 {[%clk 0:00:02.2]} 37. Ra6 {[%clk
0:00:47.5]} 37... Nh6 {[%clk 0:00:02.1]} 38. Rxa5 {[%clk 0:00:47.5]} 38... Rc7
{[%clk 0:00:02.4]} 39. Rxh5 {[%clk 0:00:46.8]} 39... Kg6 {[%clk 0:00:02.9]} 40.
Rb5 {[%clk 0:00:46.3]} 40... Nf5 {[%clk 0:00:02.6]} 41. a5 {[%clk 0:00:46.5]}
41... Ra7 {[%clk 0:00:02.3]} 42. Rc5 {[%clk 0:00:43.8]} 42... Ne7 {[%clk
0:00:02.4]} 43. b4 {[%clk 0:00:43.8]} 43... Kf7 {[%clk 0:00:02.6]} 44. b5 {[%clk
0:00:44.3]} 44... Ke6 {[%clk 0:00:02.6]} 45. b6 {[%clk 0:00:44.7]} 45... Ra6
{[%clk 0:00:02.8]} 46. b7 {[%clk 0:00:44.2]} 46... Nc6 {[%clk 0:00:03.1]} 47.
Rxc6+ {[%clk 0:00:44]} 47... Rxc6 {[%clk 0:00:04]} 48. b8=Q {[%clk 0:00:44.7]}
1-0

[Event "Late-Titled-Tuesday-Blitz-April-16-2024"]
[Site "Chess.com"]
[Date "2024.04.16"]
[Round "4"]
[White "Leebit02"]
[Black "lamomiajunior"]
[Result "1-0"]
[WhiteElo "2554"]
[BlackElo "2724"]
[TimeControl "180+1"]
[EndTime "14:37:28 PDT"]
[Termination "Leebit02 won by resignation"]

1. d4 {[%clk 0:02:59.1]} 1... Nf6 {[%clk 0:03:00]} 2. c4 {[%clk 0:02:58.1]} 2...
e6 {[%clk 0:03:00.2]} 3. Nf3 {[%clk 0:02:58.4]} 3... d5 {[%clk 0:03:00.1]} 4. g3
{[%clk 0:02:58.9]} 4... Bb4+ {[%clk 0:02:59.6]} 5. Nbd2 {[%clk 0:02:54.5]} 5...
dxc4 {[%clk 0:02:57.5]} 6. Bg2 {[%clk 0:02:53.6]} 6... O-O {[%clk 0:02:52.3]} 7.
O-O {[%clk 0:02:51.9]} 7... b5 {[%clk 0:02:52.8]} 8. a4 {[%clk 0:02:40.4]} 8...
c6 {[%clk 0:02:36.2]} 9. Ne1 {[%clk 0:02:25.6]} 9... Nd5 {[%clk 0:02:30.1]} 10.
Nc2 {[%clk 0:02:23.2]} 10... Bxd2 {[%clk 0:02:19.9]} 11. Bxd2 {[%clk 0:02:18.9]}
11... Bb7 {[%clk 0:02:20.8]} 12. e4 {[%clk 0:02:17.5]} 12... Ne7 {[%clk
0:02:19.2]} 13. a5 {[%clk 0:02:03.5]} 13... a6 {[%clk 0:02:12.9]} 14. Bb4 {[%clk
0:02:03.8]} 14... Nd7 {[%clk 0:02:12.8]} 15. h4 {[%clk 0:01:56.3]} 15... Rc8
{[%clk 0:02:11.5]} 16. Qg4 {[%clk 0:01:49.9]} 16... Kh8 {[%clk 0:01:53.8]} 17.
Rad1 {[%clk 0:01:44.4]} 17... Qe8 {[%clk 0:01:49.6]} 18. Bd6 {[%clk 0:01:41.1]}
18... c5 {[%clk 0:01:41.3]} 19. dxc5 {[%clk 0:01:39.5]} 19... Nxc5 {[%clk
0:01:42.2]} 20. Nb4 {[%clk 0:01:33.7]} 20... Rg8 {[%clk 0:01:32.3]} 21. Qg5
{[%clk 0:01:29.2]} 21... f6 {[%clk 0:01:28.2]} 22. Qe3 {[%clk 0:01:29.5]} 22...
Nd3 {[%clk 0:00:28.1]} 23. Nxd3 {[%clk 0:01:16.9]} 23... cxd3 {[%clk 0:00:29]}
24. Rxd3 {[%clk 0:01:17.2]} 24... Nc6 {[%clk 0:00:28.7]} 25. Qb6 {[%clk
0:01:15.8]} 25... Qf7 {[%clk 0:00:28.3]} 26. Rfd1 {[%clk 0:01:14]} 26... e5
{[%clk 0:00:27.3]} 27. Bc5 {[%clk 0:01:10.6]} 27... Nb8 {[%clk 0:00:21.3]} 28.
b4 {[%clk 0:00:57.3]} 28... h6 {[%clk 0:00:19.6]} 29. Rd6 {[%clk 0:00:52.7]}
29... Bc6 {[%clk 0:00:16.5]} 30. Bh3 {[%clk 0:00:51.8]} 30... Rc7 {[%clk
0:00:13]} 31. Be6 {[%clk 0:00:51.4]} 31... Qg6 {[%clk 0:00:12.4]} 32. Bxg8
{[%clk 0:00:47.2]} 32... Qxe4 {[%clk 0:00:11.5]} 33. Bd5 {[%clk 0:00:45.7]}
33... Bxd5 {[%clk 0:00:09.2]} 34. R6xd5 {[%clk 0:00:46.2]} 34... Rc8 {[%clk
0:00:07]} 35. Qb7 {[%clk 0:00:45.9]} 35... Rg8 {[%clk 0:00:06.3]} 36. Qf7 {[%clk
0:00:41.3]} 36... Qf3 {[%clk 0:00:06.1]} 37. Rd8 {[%clk 0:00:40.8]} 37... Rxd8
{[%clk 0:00:06.4]} 38. Rxd8+ {[%clk 0:00:40.9]} 38... Kh7 {[%clk 0:00:07.3]} 39.
Qd5 {[%clk 0:00:38.2]} 39... e4 {[%clk 0:00:06.8]} 40. Rxb8 {[%clk 0:00:35.6]}
40... Qe2 {[%clk 0:00:06.1]} 41. Qf5+ {[%clk 0:00:33]} 1-0

[Event "Late-Titled-Tuesday-Blitz-April-16-2024"]
[Site "Chess.com"]
[Date "2024.04.16"]
[Round "4"]
[White "andrew-blr"]
[Black "stasOR4ik"]
[Result "0-1"]
[WhiteElo "2628"]
[BlackElo "2430"]
[TimeControl "180+1"]
[EndTime "14:37:28 PDT"]
[Termination "stasOR4ik won by resignation"]

1. d4 {[%clk 0:03:00.9]} 1... d5 {[%clk 0:02:54.6]} 2. c4 {[%clk 0:02:56.1]}
2... c6 {[%clk 0:02:45.3]} 3. Nf3 {[%clk 0:02:55.6]} 3... Nf6 {[%clk 0:02:45.2]}
4. e3 {[%clk 0:02:55.6]} 4... e6 {[%clk 0:02:43.9]} 5. b3 {[%clk 0:02:51.2]}
5... Nbd7 {[%clk 0:02:42.8]} 6. Bd3 {[%clk 0:02:48.5]} 6... Ne4 {[%clk
0:02:42.5]} 7. O-O {[%clk 0:02:40.3]} 7... f5 {[%clk 0:02:41.6]} 8. Qc2 {[%clk
0:02:37.7]} 8... Bd6 {[%clk 0:02:35.8]} 9. Ba3 {[%clk 0:02:37.1]} 9... Qe7
{[%clk 0:02:33.7]} 10. Bxd6 {[%clk 0:02:36.7]} 10... Qxd6 {[%clk 0:02:34.6]} 11.
Nc3 {[%clk 0:02:36.4]} 11... O-O {[%clk 0:02:33.3]} 12. Ne2 {[%clk 0:02:36.5]}
12... h6 {[%clk 0:02:28.2]} 13. Qb2 {[%clk 0:02:35.9]} 13... g5 {[%clk
0:02:23.6]} 14. Ne5 {[%clk 0:02:33.6]} 14... Nxe5 {[%clk 0:01:57.2]} 15. dxe5
{[%clk 0:02:32.7]} 15... Qb4 {[%clk 0:01:47.6]} 16. a3 {[%clk 0:01:55.6]} 16...
Qd2 {[%clk 0:01:47.4]} 17. Ra2 {[%clk 0:01:42]} 17... Qxd3 {[%clk 0:01:37.3]}
18. Nc1 {[%clk 0:01:40]} 18... Qc3 {[%clk 0:01:35.1]} 19. Qe2 {[%clk 0:01:39.1]}
19... Qa5 {[%clk 0:01:29.5]} 20. b4 {[%clk 0:01:38]} 20... Qc7 {[%clk
0:01:27.4]} 21. Rc2 {[%clk 0:01:33.8]} 21... Qxe5 {[%clk 0:01:24.9]} 22. Nd3
{[%clk 0:01:30.8]} 22... Qg7 {[%clk 0:01:12.8]} 23. f3 {[%clk 0:01:27.2]} 23...
Nd6 {[%clk 0:01:11.6]} 24. c5 {[%clk 0:01:25.9]} 24... Nc4 {[%clk 0:01:09.9]}
25. Nf2 {[%clk 0:01:21.5]} 25... e5 {[%clk 0:01:00.9]} 26. e4 {[%clk 0:01:20.5]}
26... Be6 {[%clk 0:00:54.9]} 27. exd5 {[%clk 0:01:16.5]} 27... cxd5 {[%clk
0:00:53.1]} 28. a4 {[%clk 0:01:14.3]} 28... a5 {[%clk 0:00:49.1]} 29. b5 {[%clk
0:01:14.1]} 29... Rac8 {[%clk 0:00:48.9]} 30. Nd3 {[%clk 0:01:12]} 30... e4
{[%clk 0:00:47]} 31. fxe4 {[%clk 0:01:11.6]} 31... dxe4 {[%clk 0:00:43.4]} 32.
c6 {[%clk 0:00:55.6]} 32... Qd4+ {[%clk 0:00:40.7]} 33. Nf2 {[%clk 0:00:52]}
33... bxc6 {[%clk 0:00:38.2]} 34. Rd1 {[%clk 0:00:52]} 34... Qe3 {[%clk
0:00:35]} 35. Qh5 {[%clk 0:00:49.7]} 35... Kg7 {[%clk 0:00:29.9]} 36. h4 {[%clk
0:00:28.7]} 36... Bf7 {[%clk 0:00:28.4]} 37. Rd7 {[%clk 0:00:27.2]} 37... Ne5
{[%clk 0:00:22.6]} 38. Re2 {[%clk 0:00:24.4]} 38... Qc1+ {[%clk 0:00:19.8]} 39.
Kh2 {[%clk 0:00:24.2]} 39... Nxd7 {[%clk 0:00:18.5]} 40. hxg5 {[%clk 0:00:25.1]}
40... Bxh5 {[%clk 0:00:18.2]} 41. gxh6+ {[%clk 0:00:24]} 41... Qxh6 {[%clk
0:00:19.1]} 0-1

[Event "Late-Titled-Tuesday-Blitz-April-16-2024"]
[Site "Chess.com"]
[Date "2024.04.16"]
[Round "4"]
[White "micke12a"]
[Black "ilm2034"]
[Result "1-0"]
[WhiteElo "2448"]
[BlackElo "2554"]
[TimeControl "180+1"]
[EndTime "14:37:31 PDT"]
[Termination "micke12a won by resignation"]

1. d4 {[%clk 0:02:59.5]} 1... Nf6 {[%clk 0:02:58.6]} 2. Bf4 {[%clk 0:02:59.2]}
2... d6 {[%clk 0:02:57.6]} 3. e3 {[%clk 0:02:59.1]} 3... b6 {[%clk 0:02:57.1]}
4. Nf3 {[%clk 0:02:58.7]} 4... Bb7 {[%clk 0:02:57.7]} 5. Be2 {[%clk 0:02:57.3]}
5... Nbd7 {[%clk 0:02:57.9]} 6. O-O {[%clk 0:02:57.6]} 6... g6 {[%clk
0:02:58.1]} 7. c4 {[%clk 0:02:57.9]} 7... Bg7 {[%clk 0:02:58.7]} 8. Nc3 {[%clk
0:02:58.2]} 8... O-O {[%clk 0:02:59.4]} 9. Rc1 {[%clk 0:02:58.3]} 9... Re8
{[%clk 0:03:00]} 10. h3 {[%clk 0:02:58.4]} 10... a6 {[%clk 0:03:00.4]} 11. a3
{[%clk 0:02:56.7]} 11... c5 {[%clk 0:03:00.5]} 12. b4 {[%clk 0:02:54.9]} 12...
h6 {[%clk 0:02:57.5]} 13. Bh2 {[%clk 0:02:54.1]} 13... Qc7 {[%clk 0:02:56.1]}
14. Na4 {[%clk 0:02:48.6]} 14... e5 {[%clk 0:02:55.8]} 15. dxe5 {[%clk
0:02:43.6]} 15... dxe5 {[%clk 0:02:53.5]} 16. Nd2 {[%clk 0:02:34.3]} 16... Rad8
{[%clk 0:02:40.2]} 17. Bf3 {[%clk 0:02:29.7]} 17... Bc6 {[%clk 0:02:39.8]} 18.
Bxc6 {[%clk 0:02:28.3]} 18... Qxc6 {[%clk 0:02:40.7]} 19. Qc2 {[%clk 0:02:26.9]}
19... Nh7 {[%clk 0:02:32.9]} 20. Ne4 {[%clk 0:02:19.1]} 20... f5 {[%clk
0:02:30.4]} 21. Nec3 {[%clk 0:02:18.9]} 21... cxb4 {[%clk 0:02:25.5]} 22. Nd5
{[%clk 0:02:12.2]} 22... b5 {[%clk 0:02:23.2]} 23. Nxb4 {[%clk 0:01:59.2]} 23...
Qe6 {[%clk 0:02:15.5]} 24. cxb5 {[%clk 0:01:57.1]} 24... axb5 {[%clk 0:02:15.7]}
25. Nc5 {[%clk 0:01:55]} 25... Nxc5 {[%clk 0:02:15.3]} 26. Qxc5 {[%clk
0:01:54.8]} 26... Rb8 {[%clk 0:02:07.9]} 27. Qd5 {[%clk 0:01:52.7]} 27... Nf6
{[%clk 0:02:02.3]} 28. Qxe6+ {[%clk 0:01:47.2]} 28... Rxe6 {[%clk 0:02:03.2]}
29. Rc6 {[%clk 0:01:46.3]} 29... Rbe8 {[%clk 0:01:59.6]} 30. Rfc1 {[%clk
0:01:41.9]} 30... Ne4 {[%clk 0:01:58.8]} 31. Rxe6 {[%clk 0:01:37]} 31... Rxe6
{[%clk 0:01:59.7]} 32. Rc6 {[%clk 0:01:35.8]} 32... Kf7 {[%clk 0:01:54.8]} 33.
f3 {[%clk 0:01:32.4]} 33... Nd2 {[%clk 0:01:54.8]} 34. Rc7+ {[%clk 0:01:24.9]}
34... Re7 {[%clk 0:01:54]} 35. Nd5 {[%clk 0:01:20.7]} 35... Rxc7 {[%clk
0:01:51.2]} 36. Nxc7 {[%clk 0:01:21.6]} 36... Nc4 {[%clk 0:01:47.2]} 37. Nxb5
{[%clk 0:01:21.2]} 37... Nxe3 {[%clk 0:01:47.9]} 38. Kf2 {[%clk 0:01:15.3]}
38... f4 {[%clk 0:01:48.2]} 39. Bg1 {[%clk 0:01:11.8]} 39... Bf8 {[%clk
0:01:46.2]} 40. a4 {[%clk 0:01:08.9]} 40... Bc5 {[%clk 0:01:44.1]} 41. Ke2
{[%clk 0:01:09]} 41... Ke6 {[%clk 0:01:38.9]} 42. Bxe3 {[%clk 0:01:08.6]} 42...
Bxe3 {[%clk 0:01:39.8]} 43. a5 {[%clk 0:01:07.7]} 43... Kd5 {[%clk 0:01:38.4]}
44. a6 {[%clk 0:01:03.1]} 44... Kc6 {[%clk 0:01:38.5]} 45. a7 {[%clk 0:01:00]}
45... Kb7 {[%clk 0:01:35.8]} 46. Kd3 {[%clk 0:00:59.6]} 46... Bc1 {[%clk
0:00:51.7]} 47. Ke4 {[%clk 0:00:55.2]} 47... Bb2 {[%clk 0:00:52.2]} 48. Kd5
{[%clk 0:00:51.5]} 48... g5 {[%clk 0:00:49.9]} 49. Ke4 {[%clk 0:00:37.5]} 49...
h5 {[%clk 0:00:41.7]} 50. Kf5 {[%clk 0:00:36.3]} 50... g4 {[%clk 0:00:41.6]} 51.
hxg4 {[%clk 0:00:35]} 51... hxg4 {[%clk 0:00:42]} 52. fxg4 {[%clk 0:00:27]}
52... Ba1 {[%clk 0:00:39.6]} 53. Ke4 {[%clk 0:00:26]} 1-0

[Event "Late-Titled-Tuesday-Blitz-April-16-2024"]
[Site "Chess.com"]
[Date "2024.04.16"]
[Round "4"]
[White "KVAIDAN"]
[Black "ekurtz"]
[Result "0-1"]
[WhiteElo "2381"]
[BlackElo "2593"]
[TimeControl "180+1"]
[EndTime "14:37:32 PDT"]
[Termination "ekurtz won by resignation"]

1. f4 {[%clk 0:03:00.2]} 1... Nf6 {[%clk 0:02:56.9]} 2. Nf3 {[%clk 0:02:59.3]}
2... g6 {[%clk 0:02:56.9]} 3. d3 {[%clk 0:02:58.6]} 3... d5 {[%clk 0:02:56.3]}
4. e3 {[%clk 0:02:58]} 4... Bg7 {[%clk 0:02:55.9]} 5. Be2 {[%clk 0:02:58.3]}
5... c5 {[%clk 0:02:55.7]} 6. O-O {[%clk 0:02:56.1]} 6... Nc6 {[%clk 0:02:55.9]}
7. Kh1 {[%clk 0:02:54.6]} 7... O-O {[%clk 0:02:55.6]} 8. a4 {[%clk 0:02:54.4]}
8... b6 {[%clk 0:02:54.8]} 9. Ne5 {[%clk 0:02:53.9]} 9... Bb7 {[%clk 0:02:54.5]}
10. Nxc6 {[%clk 0:02:54.5]} 10... Bxc6 {[%clk 0:02:55.4]} 11. Bf3 {[%clk
0:02:54.5]} 11... Qc7 {[%clk 0:02:52.7]} 12. Qe1 {[%clk 0:02:52.3]} 12... e5
{[%clk 0:02:48.3]} 13. fxe5 {[%clk 0:02:48.8]} 13... Qxe5 {[%clk 0:02:48.2]} 14.
e4 {[%clk 0:02:49.1]} 14... dxe4 {[%clk 0:02:47.6]} 15. Nc3 {[%clk 0:02:45.5]}
15... Rfe8 {[%clk 0:02:47.4]} 16. dxe4 {[%clk 0:02:40.7]} 16... Nxe4 {[%clk
0:02:40.8]} 17. Bxe4 {[%clk 0:02:38.4]} 17... Bxe4 {[%clk 0:02:40.9]} 18. Bf4
{[%clk 0:02:38.9]} 18... Qe6 {[%clk 0:02:36.9]} 19. Qg3 {[%clk 0:02:37.5]} 19...
Bb7 {[%clk 0:02:04.2]} 20. Nb5 {[%clk 0:02:32.7]} 20... Qc6 {[%clk 0:01:33.4]}
21. Nc7 {[%clk 0:02:24.7]} 21... Re2 {[%clk 0:01:33]} 22. Rf2 {[%clk 0:02:19.4]}
22... Rxf2 {[%clk 0:01:30.7]} 23. Qxf2 {[%clk 0:02:18.8]} 23... Rc8 {[%clk
0:01:24.2]} 24. Nb5 {[%clk 0:02:18]} 24... Ra8 {[%clk 0:01:16.8]} 25. Nc7 {[%clk
0:02:16.9]} 25... Rd8 {[%clk 0:01:15.4]} 26. c3 {[%clk 0:02:14.4]} 26... a6
{[%clk 0:01:14.2]} 27. Qf1 {[%clk 0:02:05.3]} 27... h6 {[%clk 0:01:12.4]} 28.
Nxa6 {[%clk 0:02:02.4]} 28... Rd3 {[%clk 0:01:00.8]} 29. Nc7 {[%clk 0:01:55.2]}
29... Rd7 {[%clk 0:00:49.2]} 30. Nb5 {[%clk 0:01:54.5]} 30... Re7 {[%clk
0:00:49.3]} 31. Nd6 {[%clk 0:01:42.2]} 31... Ba8 {[%clk 0:00:48.6]} 32. Nc4
{[%clk 0:01:39.5]} 32... Re4 {[%clk 0:00:48.1]} 33. Ne3 {[%clk 0:01:27.6]} 33...
g5 {[%clk 0:00:48.7]} 34. Nf5 {[%clk 0:01:16.8]} 34... Rxf4 {[%clk 0:00:48]} 35.
Ne7+ {[%clk 0:01:13.6]} 35... Kh7 {[%clk 0:00:48.1]} 36. Nxc6 {[%clk 0:01:13.2]}
36... Rxf1+ {[%clk 0:00:48.5]} 37. Rxf1 {[%clk 0:01:13.4]} 37... Bxc6 {[%clk
0:00:49]} 38. Rxf7 {[%clk 0:01:10.5]} 38... Bxa4 {[%clk 0:00:49.5]} 39. Rb7
{[%clk 0:01:08.7]} 39... b5 {[%clk 0:00:49.9]} 40. Ra7 {[%clk 0:01:07.3]} 40...
c4 {[%clk 0:00:50.1]} 41. Kg1 {[%clk 0:01:05.2]} 41... Kg6 {[%clk 0:00:51]} 42.
Kf2 {[%clk 0:01:05.5]} 42... Bf8 {[%clk 0:00:51.6]} 43. Kf3 {[%clk 0:01:05.3]}
43... Bd1+ {[%clk 0:00:49.6]} 44. Ke4 {[%clk 0:01:03.3]} 44... Ba4 {[%clk
0:00:46.8]} 45. g4 {[%clk 0:00:58.8]} 45... Bc5 {[%clk 0:00:40.2]} 46. Ra6+
{[%clk 0:00:56.7]} 46... Kg7 {[%clk 0:00:40.5]} 47. Kd5 {[%clk 0:00:56.7]} 47...
Bg1 {[%clk 0:00:38.2]} 48. h3 {[%clk 0:00:56.9]} 48... Be3 {[%clk 0:00:38.9]}
49. Ke6 {[%clk 0:00:53.9]} 49... Bc1 {[%clk 0:00:39.1]} 50. Kf5 {[%clk
0:00:47.5]} 50... Bxb2 {[%clk 0:00:39]} 51. Ra7+ {[%clk 0:00:47.2]} 51... Kf8
{[%clk 0:00:39.6]} 52. Kg6 {[%clk 0:00:42]} 52... Bxc3 {[%clk 0:00:39.9]} 53.
Kxh6 {[%clk 0:00:42.4]} 53... Bd2 {[%clk 0:00:40.8]} 54. Rd7 {[%clk 0:00:39.2]}
54... c3 {[%clk 0:00:41.2]} 55. Kg6 {[%clk 0:00:38.6]} 55... c2 {[%clk
0:00:40.9]} 56. Rxd2 {[%clk 0:00:35.8]} 56... c1=Q {[%clk 0:00:41]} 57. Rf2+
{[%clk 0:00:35.6]} 57... Ke7 {[%clk 0:00:40.9]} 58. Rf5 {[%clk 0:00:35.6]} 58...
Bc2 {[%clk 0:00:40.5]} 0-1

[Event "Late-Titled-Tuesday-Blitz-April-16-2024"]
[Site "Chess.com"]
[Date "2024.04.16"]
[Round "4"]
[White "grzechu96"]
[Black "Balla_Tamas"]
[Result "1-0"]
[WhiteElo "2767"]
[BlackElo "2541"]
[TimeControl "180+1"]
[EndTime "14:37:35 PDT"]
[Termination "grzechu96 won by checkmate"]

1. e4 {[%clk 0:03:00.9]} 1... c5 {[%clk 0:03:00]} 2. Nf3 {[%clk 0:03:01.2]} 2...
Nc6 {[%clk 0:03:00.3]} 3. Bb5 {[%clk 0:03:01.1]} 3... Nf6 {[%clk 0:03:00.3]} 4.
Bxc6 {[%clk 0:03:00.9]} 4... dxc6 {[%clk 0:03:00]} 5. d3 {[%clk 0:03:01.1]} 5...
Nd7 {[%clk 0:02:58.9]} 6. Bf4 {[%clk 0:02:58]} 6... Nb6 {[%clk 0:02:56.8]} 7. h3
{[%clk 0:02:54.3]} 7... g6 {[%clk 0:02:51.5]} 8. Nc3 {[%clk 0:02:51.7]} 8... Bg7
{[%clk 0:02:51.5]} 9. Qd2 {[%clk 0:02:48]} 9... O-O {[%clk 0:02:42.9]} 10. Bh6
{[%clk 0:02:46.6]} 10... Be6 {[%clk 0:02:29.1]} 11. O-O {[%clk 0:02:43.8]} 11...
Nd7 {[%clk 0:02:20.9]} 12. Bxg7 {[%clk 0:02:40.8]} 12... Kxg7 {[%clk 0:02:20.9]}
13. Ng5 {[%clk 0:02:37.8]} 13... Ne5 {[%clk 0:02:05.2]} 14. f4 {[%clk
0:02:14.7]} 14... Nd7 {[%clk 0:02:04.1]} 15. Qf2 {[%clk 0:02:05.3]} 15... h6
{[%clk 0:02:00.3]} 16. Nxe6+ {[%clk 0:02:04.8]} 16... fxe6 {[%clk 0:02:00.4]}
17. Qg3 {[%clk 0:02:03.2]} 17... Nf6 {[%clk 0:01:59.1]} 18. Rad1 {[%clk
0:01:52.7]} 18... Kh7 {[%clk 0:01:58.1]} 19. Kh2 {[%clk 0:01:48.9]} 19... Qc7
{[%clk 0:01:54]} 20. e5 {[%clk 0:01:42.8]} 20... Nh5 {[%clk 0:01:53.2]} 21. Qg4
{[%clk 0:01:27.6]} 21... Rf5 {[%clk 0:01:47.7]} 22. g3 {[%clk 0:00:06.5]} 22...
Raf8 {[%clk 0:01:40.6]} 23. Ne4 {[%clk 0:00:05.7]} 23... b6 {[%clk 0:01:36.6]}
24. b3 {[%clk 0:00:05.8]} 24... Ng7 {[%clk 0:01:32.4]} 25. Kg2 {[%clk
0:00:04.4]} 25... a5 {[%clk 0:01:30.9]} 26. h4 {[%clk 0:00:04.3]} 26... Nh5
{[%clk 0:01:21.8]} 27. Rf2 {[%clk 0:00:04.2]} 27... a4 {[%clk 0:01:18]} 28. Rdf1
{[%clk 0:00:04.5]} 28... axb3 {[%clk 0:01:16.3]} 29. axb3 {[%clk 0:00:05.4]}
29... Ra8 {[%clk 0:01:16.4]} 30. Kh2 {[%clk 0:00:04.8]} 30... Ra2 {[%clk
0:01:15.8]} 31. Qh3 {[%clk 0:00:03.8]} 31... Rf7 {[%clk 0:01:11.6]} 32. Kg2
{[%clk 0:00:02.6]} 32... c4 {[%clk 0:01:03.7]} 33. bxc4 {[%clk 0:00:01.6]} 33...
c5 {[%clk 0:01:04.3]} 34. Kh1 {[%clk 0:00:01.8]} 34... Qc6 {[%clk 0:01:01.5]}
35. Qg2 {[%clk 0:00:02.4]} 35... Ng7 {[%clk 0:00:51.2]} 36. Ng5+ {[%clk
0:00:02.4]} 36... hxg5 {[%clk 0:00:48.3]} 37. Qxc6 {[%clk 0:00:03.3]} 37... Nf5
{[%clk 0:00:49.2]} 38. hxg5 {[%clk 0:00:02.9]} 38... Nxg3+ {[%clk 0:00:50.1]}
39. Kg2 {[%clk 0:00:03.4]} 39... Nf5 {[%clk 0:00:51]} 40. Re2 {[%clk 0:00:03.6]}
40... Nd4 {[%clk 0:00:51.6]} 41. Qe4 {[%clk 0:00:03.8]} 41... b5 {[%clk
0:00:47.3]} 42. cxb5 {[%clk 0:00:03.8]} 42... Nxb5 {[%clk 0:00:48.2]} 43. Ref2
{[%clk 0:00:03.9]} 43... Nc3 {[%clk 0:00:48.5]} 44. Rh1+ {[%clk 0:00:03.6]}
44... Kg7 {[%clk 0:00:48.1]} 45. Qf3 {[%clk 0:00:04.4]} 45... Nd5 {[%clk
0:00:47.7]} 46. Qh3 {[%clk 0:00:04.8]} 46... Nxf4+ {[%clk 0:00:38.1]} 47. Rxf4
{[%clk 0:00:05]} 47... Rxc2+ {[%clk 0:00:38.8]} 48. Kg3 {[%clk 0:00:05.6]} 48...
Rxf4 {[%clk 0:00:37.7]} 49. Qh8+ {[%clk 0:00:05.9]} 49... Kf7 {[%clk 0:00:38.3]}
50. Rh7# {[%clk 0:00:06.7]} 1-0